Workbook

Sheet 214项
A1: 附件1
A2: 惠州三院214项部分医学和病理检验检测委托外包项目清单
A3: 项目 | B3: 项目条码 | C3: 招标项目名称 | D3: 检测方法 | E3: 数量 | F3: 单价 | G3: 总金额 | H3: 项目明细 | I3: 备注
A5: 1 | B5: 270800007 | C5: 疑难病理会诊 | D5: HE染色 | E5: 1 | F5: 174 | G5: 174
A6: 2 | B6: 270300001 | C6: 常规肾脏病理检查 | D6: HE染色/特殊染色 | E6: 1 | F6: 108 | G6: =F6*E6+F7*E7+F8*E8+F9*E9 -> 1117.3 | H6: 按实际做的数量结算
B7: 270500001 | E7: 3 | F7: 51
B8: 270500003 | D8: 免疫荧光染色 | E8: 7 | F8: 116.9
B9: 270800006 | D9: 图文报告 | E9: 4 | F9: 9.5
A10: 3 | B10: 270600001 | C10: 普通透射电镜检查与诊断 | D10: 透射电镜检查 | E10: 1 | F10: 276 | G10: 276
A11: 4 | B11: 270500002 | C11: 免疫组织化学染色诊断 | D11: 免疫组织化学染色 | E11: 1 | F11: 138.6 | G11: 138.6 | H11: 按实际做的抗体数量进行结算
A12: 5 | B12: 270700005S-2 | C12: EWSR1基因断裂检测 | D12: FISH（荧光原位杂交） | E12: 1 | F12: 2000.4 | G12: 2000.4 | H12: 用于尤文肉瘤辅助诊断，按实际做的抗体数量进行结算 | I12: 缺乏相关试剂，该类病人活检标本较少，自行开展耗材成本、人力成本较高。
A13: 6 | B13: 270700005S-2 | C13: ETV6/NTRK3融合基因检测 | D13: FISH（荧光原位杂交） | E13: 1 | F13: 2000.4 | G13: 2000.4 | H13: 用于婴儿纤维肉瘤、分泌性癌诊断，按实际做的抗体数量进行结算 | I13: 缺乏相关试剂，该类病人活检标本较少，自行开展耗材成本、人力成本较高。
A14: 7 | B14: 270700005S-2 | C14: BCL6基因断裂检测 | D14: FISH（荧光原位杂交） | E14: 1 | F14: 2000.4 | G14: 2000.4 | H14: 双打击或三打击淋巴瘤诊断，按实际做的抗体数量进行结算 | I14: 缺乏相关试剂，该类病人活检标本较少，自行开展耗材成本、人力成本较高。
A15: 8 | B15: 270700005S-2 | C15: BCL2基因断裂检测 | D15: FISH（荧光原位杂交） | E15: 1 | F15: 2000.4 | G15: 2000.4
A16: 9 | B16: 270700005S-2 | C16: MYC基因断裂检测 | D16: FISH（荧光原位杂交） | E16: 1 | F16: 2000.4 | G16: 2000.4
A17: 10 | B17: 270700003×10 | C17: 微卫星不稳定性（MSI） | D17: 一代测序 | E17: 1 | F17: 2237 | G17: 2237 | H17: MSI-H型患者免疫治疗疗效较好，按实际做的抗体数量进行结算 | I17: 缺乏相关仪器、试剂
A18: 11 | B18: 270700007F×N | C18: IgG基因重排 | D18: 高通量基因测序 | E18: 1 | F18: 1050 | G18: 1050 | H18: 淋巴组织增生性病变辅助诊断与鉴别诊断，按实际做的抗体数量进行结算 | I18: 缺乏相关仪器、试剂
A19: 12 | B19: 270700007F×N | C19: TCR基因重排 | D19: 高通量基因测序 | E19: 1 | F19: 1050 | G19: 1050
A20: 13 | B20: 250310012-1 | C20: 反T3 | D20: 各种免疫学方法 | E20: 1 | F20: 30 | G20: 30 | I20: 平台到位后收回由检验科自主开展
A21: 14 | B21: 250310032-2 | C21: 雄烯二酮(AD) | D21: 化学发光法 | E21: 1 | F21: 43 | G21: 43 | I21: 平台到位后收回由检验科自主开展
A22: 15 | B22: 250310030-2（2次) | C22: 游离睾酮FT | D22: 化学发光法 | E22: 2 | F22: 53 | G22: 106 | I22: 平台到位后收回由检验科自主开展
A23: 16 | B23: 250402060S-2 | C23: 性激素结合球蛋白(SHBG) | D23: 化学发光法 | E23: 1 | F23: 69 | G23: 69 | I23: 平台到位后收回由检验科自主开展
A24: 17 | B24: 250310003-2 | C24: 生长激素GH | D24: 化学发光法 | E24: 1 | F24: 54 | G24: 54 | I24: 平台到位后收回由检验科自主开展
A25: 18 | B25: 250310020-2 | C25: 17-羟皮质类固醇 | D25: 色谱法 | E25: 1 | F25: 75 | G25: 75 | I25: 平台到位后收回由检验科自主开展
A26: 19 | B26: 250310021-2 | C26: 17-酮皮质类固醇 | D26: 色谱法 | E26: 1 | F26: 75 | G26: 75 | I26: 平台到位后收回由检验科自主开展
A27: 20 | B27: 250310025-1 | C27: 尿香草扁桃酸 | D27: 色谱法 | E27: 1 | F27: 72 | G27: 72 | I27: 平台到位后收回由检验科自主开展
A28: 21 | B28: 250301022s | C28: 胰岛素样生长因子-1 IGF-1 | E28: 2 | F28: 90 | G28: 180 | I28: 平台到位后收回由检验科自主开展
A29: 22 | B29: 250305013-1 | C29: 骨型碱性磷酸酶BAP | D29: 放免法或酶免法 | E29: 1 | F29: 41.4 | G29: 41.4 | I29: 平台到位后收回由检验科自主开展
A30: 23 | B30: 250310022-2 | C30: 硫酸去氢表雄酮 DHS | D30: 化学发光法 | E30: 1 | F30: 53 | G30: 53 | I30: 试剂采购到位后收回由检验科自主开展
A31: 24 | B31: 250311008s | C31: 总Ⅰ型胶原氨基端延长肽 PINP | D31: 化学发光法 | E31: 1 | F31: 90 | G31: 90 | I31: 试剂采购到位后收回由检验科自主开展
A32: 25 | B32: 250311007 | C32: β胶联降解产物 β-CTX | E32: 1 | F32: 78 | G32: 78 | I32: 试剂采购到位后收回由检验科自主开展
A33: 26 | B33: 250301022s | C33: 胰岛素样生长因子结合蛋白3 | E33: 1 | F33: 90 | G33: 90 | I33: 试剂采购到位后收回由检验科自主开展
A34: 27 | B34: 250309007(17次) 250303015(29次) | C34: 遗传代谢病检测（新生儿）IMD(NB) | D34: 串联质谱法 | E34: 29 | F34: 8.5 | G34: =F34*29+F35*E35 -> 319.6
E35: 17 | F35: 4.3
A36: 28 | B36: 250309007(17次) 250303015(29次) | C36: 遗传代谢病检测（临床患者） | D36: 串联质谱法 | E36: 17 | F36: 4.3 | G36: 319.6
E37: 29 | F37: 8.5
A38: 29 | B38: 250309007(17次) 250303015(29次) | C38: 尿液有机酸分析 | D38: 气相色谱-质谱法 | E38: 17 | F38: 4.3 | G38: 319.6
E39: 29 | F39: 8.5
A40: 30 | B40: 250307029 | C40: α1-微球蛋白 | E40: 1 | F40: 60 | G40: 60 | I40: 试剂采购到位后收回由检验科自主开展
A41: 31 | B41: 250403001-2 | C41: 甲型肝炎病毒抗体IgG （HAV-IgG） | D41: 各种免疫学方法 | E41: 1 | F41: 21 | G41: 21 | I41: 试剂采购到位后收回由检验科自主开展
A42: 32 | B42: 250305029 | C42: 甘胆酸 (CG) | E42: 1 | F42: 18 | G42: 18 | I42: 试剂采购到位后收回由检验科自主开展
A43: 33 | B43: 250501041 | C43: HBV拉米呋啶耐药基因检测 | D43: 荧光PCR | E43: 1 | F43: 134 | G43: 134
A44: 34 | B44: 250403083s | C44: 乙型肝炎病毒前C区/BCP区基因突变检测 | D44: 荧光PCR | E44: 1 | F44: 221 | G44: 221
A45: 35 | B45: 250403011 | C45: 乙肝表面抗原前S1定性检测 | E45: 1 | F45: 27 | G45: 27
A46: 36 | B46: 250403072-3 | C46: 乙型肝炎病毒(HBV)分型 | D46: 荧光PCR | E46: 1 | F46: 304 | G46: 304
A47: 37 | B47: 250700031F | C47: 乙肝病毒P基因区耐药检测(HBV-p gene) | D47: 高通量基因测序 | E47: 2 | F47: 230 | G47: 460
A48: 38 | B48: 250403071(3次) | C48: 丙型肝炎病毒（HCV）基因分型 | E48: 3 | F48: 129 | G48: =E48*F48 -> 387
A49: 39 | B49: 250700031F | C49: 白细胞介素28B(IL28B)基因分型 | D49: 高通量基因测序 | E49: 2 | F49: 230 | G49: 460
A50: 40 | B50: 270700003 | C50: 肌苷酶(ITPA)、白介素28B(IL28B)基因分型(4位点) | D50: 脱氧核糖核酸(DNA)测序 | E50: 2 | F50: 223.7 | G50: 447.4
A51: 41 | B51: 250403056 | C51: 钩端螺旋体抗体IgG | E51: 1 | F51: 25.6 | G51: 25.6
A52: 42 | B52: 250403026 | C52: 呼吸道合胞病毒抗体IgG | E52: 1 | F52: 36 | G52: 36 | I52: 试剂采购到位后收回由检验科自主开展
A53: 43 | B53: 250403031-1 | C53: 腺病毒抗体IgM(ADV-IgM） | D53: 各种免疫学方法 | E53: 1 | F53: 18 | G53: 18 | I53: 试剂采购到位后收回由检验科自主开展
A54: 44 | B54: 250403065-1 | C54: 弓形虫（TOX-DNA）定性 | D54: 荧光PCR | E54: 1 | F54: 72 | G54: 72
A55: 45 | B55: 250403082s | C55: 肝吸虫IgG抗体 | D55: 各种免疫学方法 | E55: 1 | F55: 16 | G55: 16
A56: 46 | B56: 250403020-1 250602001-2(4次) | C56: 脑寄生虫全套（脑囊虫IgG、肺吸虫IgG、裂头蚴IgG、血吸虫IgG、弓形虫IgG） | D56: 各种免疫学方法 | E56: 1 | F56: 24.3 | G56: =F56+F57*E57 -> 96.3
E57: 4 | F57: 18
A58: 47 | B58: 250403020-1 250602001-2(2次) 250403082s | C58: 肝寄生虫全套（肝吸虫IgG、肺吸虫IgG、包虫IgG、弓形虫IgG） | D58: 各种免疫学方法 | E58: 1 | F58: 24.3 | G58: =F58+F59*E59+F60 -> 76.3
E59: 2 | F59: 18
E60: 1 | F60: 16
A61: 48 | B61: 250403020-1 250602001-2(2次) | C61: 肺寄生虫全套（肺吸虫IgG、血吸虫IgG、弓形虫IgG） | D61: 各种免疫学方法 | E61: 1 | F61: 24.3 | G61: =F62*E62+F61 -> 60.3
E62: 2 | F62: 18
A63: 49 | B63: 250403076（2次） | C63: 肺炎衣原体抗体二项（CP-IgM、IgG） | E63: 2 | F63: 60 | G63: =F63*E63 -> 120 | I63: 试剂采购到位后收回由检验科自主开展
A64: 50 | B64: 250403042-1 | C64: 军团菌抗体IgM | D64: 各种免疫学方法 | E64: 1 | F64: 43 | G64: =F64*E64 -> 43 | I64: 试剂采购到位后收回由检验科自主开展
A65: 51 | B65: 250501036（3次） | C65: GM试验 | E65: 3 | F65: 46 | G65: =F65*E65 -> 138 | I65: 试剂采购到位后收回由检验科自主开展
A66: 52 | B66: 250403065-1 250501013 27070003（2次） | C66: 结合分枝杆菌及利福平耐药检测 | E66: 1 | F66: 72.00 | G66: =F66+F67+F68*E68 -> 583.4 | I66: 试剂采购到位后收回由检验科自主开展
E67: 1 | F67: 64.00
E68: 2 | F68: 223.70
A69: 53 | B69: 250310033-2 | C69: 17α羟基孕酮 | D69: 化学发光法 | E69: 1 | F69: 46.80 | G69: =F69*E69 -> 46.8 | I69: 试剂采购到位后收回由检验科自主开展
A70: 54 | B70: 250401031(6次） | C70: 流式封闭抗体检测 | D70: 流式细胞术 | E70: 6 | F70: 54 | G70: =F70*E70 -> 324 | H70: T淋巴细胞CD3*2 T淋巴细胞CD3*2 T淋巴细胞CD3*2 | I70: 平台到位后收回由检验科自主开展
A71: 55 | B71: 250203068-3 | C71: HLA-B27-DNA | D71: 基因检测法 | E71: 1 | F71: 105 | G71: =F71*E71 -> 105 | I71: 平台到位后收回由检验科自主开展
A72: 56 | B72: 250203055 250203025-2 250203030-2 | C72: 易栓症检查A(狼疮抗凝物筛查,APTT,Fg,PT) | E72: 1 | F72: 54 | G72: =SUM(F72:F74) -> 92 | I72: 平台到位后收回由检验科自主开展
E73: 1 | F73: 21
E74: 1 | F74: 17
A75: 57 | B75: 250203047-2 250203051 | C75: 易栓症检查B(AT-III，蛋白C活性） | E75: 1 | F75: 57 | G75: =SUM(F75:F76) -> 131 | I75: 平台到位后收回由检验科自主开展
E76: 1 | F76: 74
A77: 58 | B77: 250203054 | C77: 蛋白S测定 | E77: 1 | F77: 181 | G77: =F77*E77 -> 181 | I77: 平台到位后收回由检验科自主开展
A78: 59 | B78: 250203051 | C78: 蛋白C测定 | E78: 1 | F78: 74 | G78: =F78*E78 -> 74
A79: 60 | B79: 250203031-2 | C79: F VIII：C活性测定 | E79: 1 | F79: 109 | G79: 109 | I79: 平台到位后收回由检验科自主开展
A80: 61 | B80: 250401031(36次) | C80: 急慢性白血病/NHL/MDS全面CD系列检测(40CD) | D80: 流式细胞术 | E80: 40 | F80: 54 | G80: 2160
A81: 62 | B81: 250401031(2次) | C81: 红细胞 CD55、CD59评估 | D81: 流式细胞术 | E81: 2 | F81: 54 | G81: 108 | I81: 平台到位后收回由检验科自主开展
A82: 63 | B82: 250401031(15次) | C82: 浆细胞疾病相关CD系列检测（15CD） | D82: 流式细胞术 | E82: 15 | F82: 54 | G82: 810 | I82: 平台到位后收回由检验科自主开展
A83: 64 | B83: 250700017-9 | C83: 融合基因BCR/ABL检测 (定量，p190) | D83: 荧光PCR | E83: 1 | F83: 479 | G83: 479
A84: 65 | B84: 250700017-9 | C84: 融合基因BCR/ABL检测 (定量，p210) | D84: 荧光PCR | E84: 1 | F84: 479 | G84: 479
A85: 66 | B85: 250700017-9 | C85: 融合基因 PML/RARα检测(定量) | D85: 荧光PCR | E85: 1 | F85: 479 | G85: 479
A86: 67 | B86: 250700017-1 | C86: JAK2-V617F基因突变检测(定性) | D86: 荧光PCR | E86: 1 | F86: 152 | G86: 152
A87: 68 | B87: 250401031(20次) | C87: 微小残留白血病检测(28CD) | D87: 流式细胞术 | E87: 28 | F87: 54 | G87: 1512 | I87: 平台到位后收回由检验科自主开展
A88: 69 | B88: 250401027 | C88: κ链 | E88: 1 | F88: 24 | G88: 24 | I88: 试剂采购到位后收回由检验科自主开展
A89: 70 | B89: 250401027 | C89: λ链 | E89: 1 | F89: 24 | G89: 24 | I89: 试剂采购到位后收回由检验科自主开展
A90: 71 | B90: 250309005-4（2次） | C90: BCR-ABL融合基因ABL激酶区突变检测 | E90: 2 | F90: 261 | G90: 522
A91: 72 | B91: 250700017-9 | C91: JAK2-V617F基因突变检测(定量) | D91: 荧光PCR | E91: 1 | F91: 479 | G91: 479
A92: 73 | B92: 250700031F | C92: 血液肿瘤JAK2基因突变检测 | D92: 高通量基因测序 | E92: 1 | F92: 230 | G92: =F92*E92 -> 230
A93: 74 | B93: 250700017-9 | C93: 融合基因 PML/RARα检测 3型 (定量) | D93: 荧光PCR | E93: 1 | F93: 479 | G93: 479
A94: 75 | B94: 250700017-9 | C94: 融合基因AML1/ETO检测(定量) | D94: 荧光PCR | E94: 1 | F94: 479 | G94: 479
A95: 76 | B95: 250700017-1（17次） | C95: AML18种常见融合基因筛查 | D95: 荧光PCR | E95: 17 | F95: 152 | G95: 2584
A96: 77 | B96: 250700017-1（19次） | C96: ALL 15种常见融合基因筛查 | D96: 荧光PCR | E96: 19 | F96: 152 | G96: 2888
A97: 78 | B97: 250700031F | C97: 血液肿瘤WT1基因突变检测 | D97: 高通量基因测序 | E97: 1 | F97: 230 | G97: 230
A98: 79 | B98: 250700017-9 | C98: WT1基因定量检测 | D98: 荧光PCR | E98: 1 | F98: 479 | G98: 479
A99: 80 | B99: 260000021（8次） | C99: 儿童或成人染色体微阵列检测（HD） | E99: 8 | F99: 570 | G99: 4560
A100: 81 | B100: 250203033-2 | C100: VIII因子抑制物定量测定 | E100: 1 | F100: 152 | G100: 152 | I100: 平台到位后收回由检验科自主开展
A101: 82 | B101: 250401031（40次） | C101: 急慢性白血病/NHL/MDS全面CD系列检测(40CD) | D101: 流式细胞术 | E101: 40 | F101: 54 | G101: 2160 | I101: 平台到位后收回由检验科自主开展
A102: 83 | B102: 250401031（15次） | C102: 急性白血病快速鉴别诊断CD系列检测(15CD) | D102: 流式细胞术 | E102: 15 | F102: 54 | G102: 810 | I102: 平台到位后收回由检验科自主开展
A103: 84 | B103: 250401031（20次） | C103: 白血病/淋巴瘤微小残留病变细胞检测（20CD） | D103: 流式细胞术 | E103: 20 | F103: 54 | G103: 1080
A104: 85 | B104: 250401031（15次） | C104: 白血病/淋巴瘤微小残留病变细胞检测（既往有完整的FCM分型)（15CD） | D104: 流式细胞术 | E104: 15 | F104: 54 | G104: 810 | I104: 平台到位后收回由检验科自主开展
A105: 86 | B105: 250309005-4（2次） | C105: IgH基因重排检测 | E105: 2 | F105: 261 | G105: 522
A106: 87 | B106: 270700003 (2次) | C106: 游离轻链定量及比值(FLC) | D106: 脱氧核糖核酸(DNA)测序 | E106: 2 | F106: 223.7 | G106: 447.4 | I106: 试剂采购到位后收回由检验科自主开展
A107: 88 | B107: 250700031F | C107: 巯嘌呤类药物安全用药基因检测(NGS) | D107: 高通量基因测序 | E107: 2 | F107: 230 | G107: 460 | I107: 平台到位后收回由检验科自主开展
A108: 89 | B108: 250402042 250402005 | C108: 磷脂综合征APS两项（b2-GP1-Ab+ACA） | D108: 免疫学法 | E108: 1 | F108: 90 | G108: =SUM(F108:F109) -> 152 | I108: 待平台、试剂到位后，收回医院自主开展
E109: 1 | F109: 62
A110: 90 | B110: 250402007-1 | C110: 抗线粒体抗体（AMA） | D110: 免疫学法 | E110: 1 | F110: 13 | G110: =F110*E110 -> 13 | I110: 待平台、试剂到位后，收回医院自主开展
A111: 91 | B111: 250402059s | C111: 抗线粒体 M2 抗体 (AMA-M2) | D111: 免疫印迹法 | E111: 1 | F111: 55 | G111: 55
A112: 92 | B112: 250402048 | C112: 抗链球菌DNA酶B | E112: 1 | F112: 37 | G112: 37
A113: 93 | B113: 250203055 | C113: 狼疮抗凝物质（LA）筛查 | E113: 1 | F113: 54 | G113: 54 | I113: 平台到位后收回由检验科自主开展
A114: 94 | B114: 250309010（5次） | C114: 自身免疫性脑炎检测 | E114: 5 | F114: 221 | G114: 1105
A115: 95 | B115: 250309010（2次） | C115: NMO(水通道蛋白4) | E115: 2 | F115: 221 | G115: 442 | I115: 试剂采购到位后收回由检验科自主开展
A116: 96 | B116: 250309010（2次） | C116: NMDA脑炎（NMDAR） | E116: 5 | F116: 221 | G116: 1105
A117: 97 | B117: 250301011（7次） | C117: 副瘤综合症检测 | E117: 7 | F117: 162 | G117: 1134 | H117: （Hu、Yo、Ri、CV2、PNMA2
A118: 98 | B118: 250303020S | C118: 抗磷脂酶A2受体抗体IgG定量检测 | E118: 1 | F118: 177 | G118: 177 | I118: 待平台、试剂到位后，收回医院自主开展
A119: 99 | B119: 250310047-2（3次） 250310048-2（3次） | C119: 血浆甲氧基肾上腺素类物质 | D119: 化学发光法 | E119: 3 | F119: 43 | G119: =F119*E119*2 -> 258 | I119: 平台到位后收回由检验科自主开展
E120: 3 | F120: 43
A121: 100 | B121: 250401028-1 | C121: 铜蓝蛋白CER | D121: 各种免疫学方法 | E121: 1 | F121: 18 | G121: =F121*E121 -> 18 | I121: 待平台、试剂到位后，收回医院自主开展
A122: 101 | B122: 250301011 | C122: 脑脊液寡克隆区带分析 （OCB) | E122: 1 | F122: 162 | G122: =F122*E122 -> 162
A123: 102 | B123: 250310024（3次） | C123: 儿茶酚胺(肾上腺素、去甲肾上腺素、多巴胺) | D123: 色谱法 | E123: 3 | F123: 90 | G123: =F123*E123 -> 270 | I123: 待平台、试剂到位后，收回医院自主开展
A124: 103 | B124: 250301004 | C124: 血清蛋白电泳(SPE) | E124: 1 | F124: 28 | G124: =F124*E124 -> 28 | I124: 待平台、试剂到位后，收回医院自主开展
A125: 104 | B125: 250307010 | C125: 尿蛋白电泳UPE) | E125: 1 | F125: 76 | G125: 76 | I125: 待平台、试剂到位后，收回医院自主开展
A126: 105 | B126: 250301005 | C126: 血清免疫固定电泳 (IF) | E126: 1 | F126: 176 | G126: 176 | I126: 待平台、试剂到位后，收回医院自主开展
A127: 106 | B127: 250309005-4 | C127: 普乐可复(FK506) | E127: 1 | F127: 261 | G127: 261 | I127: 待平台、试剂到位后，收回医院自主开展
A128: 107 | B128: 250309005-4 | C128: 环孢霉素A，CYCLO | E128: 1 | F128: 261 | G128: 261 | I128: 待平台、试剂到位后，收回医院自主开展
A129: 108 | B129: 250309005-3 | C129: 卡马西平CAR | E129: 1 | F129: 119 | G129: 119 | I129: 待平台、试剂到位后，收回医院自主开展
A130: 109 | B130: 250309005-3 | C130: 丙戊酸VAL | E130: 1 | F130: 119 | G130: =F130*E130 -> 119 | I130: 待平台、试剂到位后，收回医院自主开展
A131: 110 | B131: 250309005-4 | C131: 氨茶碱THEO | E131: 1 | F131: 261 | G131: 261 | I131: 待平台、试剂到位后，收回医院自主开展
A132: 111 | B132: 250309005-4 | C132: 地高辛DIG | E132: 1 | F132: 261 | G132: 261 | I132: 待平台、试剂到位后，收回医院自主开展
A133: 112 | B133: 250309005-3 | C133: 苯巴比妥(鲁米那)PHENO | E133: 1 | F133: 119 | G133: 119 | I133: 待平台、试剂到位后，收回医院自主开展
A134: 113 | B134: 250309005-3 | C134: 苯妥英钠（大仑丁） | E134: 1 | F134: 119 | G134: 119 | I134: 待平台、试剂到位后，收回医院自主开展
A135: 114 | B135: 250309005-4 | C135: 甲氨喋呤 | E135: 1 | F135: 261 | G135: 261 | I135: 待平台、试剂到位后，收回医院自主开展
A136: 115 | B136: 250301014-2 | C136: β2-微球蛋白（发光法） | D136: 化学发光法 | E136: 1 | F136: 45 | G136: 45 | I136: 待平台、试剂到位后，收回医院自主开展
A137: 116 | B137: 310800002（3次) 250201007 270800005(3次) 270800006(6次) | C137: 骨髓组织活检形态学评估套餐(骨髓活检+特染1项+免疫组化3项) | E137: 3 | F137: 176 | G137: =F137*E137+F138+F139*E139+F140*E140 -> 762.3
E138: 1 | F138: 27
E139: 3 | F139: 50.1
E140: 6 | F140: 9.5
A141: 117 | B141: 310800002（7次) 250201007 270800005(7次) 270800006(7次) | C141: 骨髓组织活检形态学评估套餐(骨髓活检+特染1项+免疫组化8项) | E141: 7 | F141: 176 | G141: =F141*E141+F142+F143*E143+F144*E144 -> 1676.2
E142: 1 | F142: 27
E143: 7 | F143: 50.1
E144: 7 | F144: 9.5
A145: 118 | B145: 260000021 | C145: 儿童或成人染色体微阵列检测（HD） | E145: 8 | F145: 570 | G145: =F145*E145 -> 4560 | I145: 待平台、试剂到位后，收回医院自主开展
A146: 119 | B146: 250203008-2（2次） | C146: 血管性血友病因子 | D146: 免疫比浊法 | E146: 2 | F146: 74 | G146: =F146*E146 -> 148 | I146: 平台到位后收回由检验科自主开展
A147: 120 | B147: 250203008-2（2次） | C147: 血管性血VWF活性检测 | D147: 免疫比浊法 | E147: 2 | F147: 74 | G147: =F147*E147 -> 148 | I147: 平台到位后收回由检验科自主开展
A148: 121 | B148: 250401014-2 | C148: 白细胞介素Ⅵ(Interleukin-6) IL-6 | D148: 化学发光法 | E148: 1 | F148: 62 | G148: =F148*E148 -> 62 | I148: 待平台、试剂到位后，收回医院自主开展
A149: 122 | B149: 250402016（3次） 250402022 250402023 250402024 250402054 250402024-1 | C149: 不孕不育抗体五项 | E149: 3 | F149: 21 | G149: =SUM(F150:F154)+F149*E149 -> 275 | I149: 待平台、试剂到位后，收回医院自主开展
E150: 1 | F150: 64
E151: 1 | F151: 43
E152: 1 | F152: 10
E153: 1 | F153: 65
E154: 1 | F154: 30
A155: 123 | B155: 250403089S-2 | C155: 肠道病毒通用型（EV-RNA）定性 | D155: 荧光PCR | E155: 1 | F155: 136.1 | G155: 136.1 | I155: 试剂采购到位后收回由检验科自主开展
A156: 124 | B156: 250310017-2 | C156: 促甲状腺激素受体剌激性抗体TSI | D156: 化学发光法 | E156: 1 | F156: 47 | G156: 47 | I156: 试剂采购到位后收回由检验科自主开展
A157: 125 | B157: 250501013 | C157: 结核菌培养 | E157: 1 | F157: 64 | G157: 64 | I157: 试剂采购到位后收回由检验科自主开展
A158: 126 | B158: 250402039 250402040 250402046 250402007-1 | C158: 红斑狼疮筛查四项 | E158: 1 | F158: 46 | G158: =SUM(F158:F161) -> 174 | H158: ANA、抗核小体抗体、DNP、dsDNA | I158: 待平台、试剂到位后，收回医院自主开展
E159: 1 | F159: 46
E160: 1 | F160: 69
E161: 1 | F161: 13
A162: 127 | B162: 250402003-2(6次) 250402010-2 | C162: 抗可提取核抗原抗体谱 | D162: 免疫印迹法 | E162: 6 | F162: 13 | G162: =F162*E162+F163 -> 106 | I162: 待平台、试剂到位后，收回医院自主开展
E163: 1 | F163: 28
A164: 128 | B164: 250402019-2 | C164: 抗肾小球基底膜抗体(GBM) | D164: 各种免疫学方法 | E164: 1 | F164: 47 | G164: =F164*E164 -> 47 | I164: 待平台、试剂到位后，收回医院自主开展
A165: 129 | B165: 250402049 | C165: 抗组蛋白抗体（AHA） | E165: 1 | F165: 50 | G165: =F165*E165 -> 50 | I165: 待平台、试剂到位后，收回医院自主开展
A166: 130 | B166: 250403065-1 | C166: 梅毒螺旋体(TP-DNA)定性 | D166: 荧光PCR | E166: 1 | F166: 72 | G166: 72
A167: 131 | B167: 250309001-2 | C167: 维生素K1 | D167: 色谱法 | E167: 1 | F167: 86 | G167: 86 | I167: 待平台、试剂到位后，收回医院自主开展
A168: 132 | B168: 250309001-2 | C168: 血浆维生素 C | D168: 色谱法 | E168: 1 | F168: 86 | G168: 86 | I168: 待平台、试剂到位后，收回医院自主开展
A169: 133 | B169: 250309001-2 | C169: 血清维生素B1 | D169: 色谱法 | E169: 1 | F169: 86 | G169: 86 | I169: 待平台、试剂到位后，收回医院自主开展
A170: 134 | B170: 250309001-2 | C170: 血清维生素 E | D170: 色谱法 | E170: 1 | F170: 86 | G170: 86 | I170: 待平台、试剂到位后，收回医院自主开展
A171: 135 | B171: 250309001-2（3次） | C171: 血清脂溶性维生素 | D171: 色谱法 | E171: 3 | F171: 86 | G171: 258 | I171: 待平台、试剂到位后，收回医院自主开展
A172: 136 | B172: 250309004-2 250309005-2 | C172: 维生素A分型及血清浓度测定 | D172: 色谱法 | E172: 1 | F172: 60 105 | G172: 165 | I172: 待平台、试剂到位后，收回医院自主开展
A173: 137 | B173: 250309004-2 250309005-2 | C173: 维生素E分型及血清浓度测定 | D173: 色谱法 | E173: 1 | F173: 60 105 | G173: 165 | I173: 待平台、试剂到位后，收回医院自主开展
A174: 138 | B174: 250309004-2 250309005-2 | C174: 维生素K1分型及血清浓度测定 | D174: 色谱法 | E174: 1 | F174: 60 105 | G174: 165 | I174: 待平台、试剂到位后，收回医院自主开展
A175: 139 | B175: 250309004-2 250309005-2 | C175: 维生素K2分型及血清浓度测定 | D175: 色谱法 | E175: 1 | F175: 65 | G175: =F175*E175 -> 65 | I175: 待平台、试剂到位后，收回医院自主开展
A176: 140 | B176: 250309001-3 | C176: 总维生素D | D176: 化学发光法 | E176: 1 | F176: 71 | G176: 71 | I176: 待平台、试剂到位后，收回医院自主开展
A177: 141 | B177: 250309005-4 | C177: 英夫利昔单体抗体 | E177: 1 | F177: 261 | G177: 261 | I177: 待平台、试剂到位后，收回医院自主开展
A178: 142 | B178: 250404013-2 | C178: 肿瘤坏死因子 α | D178: 化学发光法 | E178: 1 | F178: 67 | G178: 67 | I178: 待平台、试剂到位后，收回医院自主开展
A179: 143 | B179: 250700031F | C179: AML相关基因突变检测（基础） | D179: 高通量基因测序 | E179: 17 | F179: 230 | G179: 3910
A180: 144 | B180: 250700031F(4次) | C180: CADASIL病NOTCH3基因测序检测 | D180: 高通量基因测序 | E180: 4 | F180: 230 | G180: 920
A181: 145 | B181: 250203031-2 | C181: F II：C活性测定 | E181: 1 | F181: 109 | G181: 109 | I181: 平台到位后收回由检验科自主开展
A182: 146 | B182: 250203031-2 | C182: F IX：C活性测定 | E182: 1 | F182: 109 | G182: 109 | I182: 平台到位后收回由检验科自主开展
A183: 147 | B183: 250203031-2 | C183: F V：C活性测定 | E183: 1 | F183: 109 | G183: 109 | I183: 平台到位后收回由检验科自主开展
A184: 148 | B184: 250203031-2 | C184: F VII：C活性测定 | E184: 1 | F184: 109 | G184: 109 | I184: 平台到位后收回由检验科自主开展
A185: 149 | B185: 250203031-2 | C185: F X：C活性测定 | E185: 1 | F185: 109 | G185: 109 | I185: 平台到位后收回由检验科自主开展
A186: 150 | B186: 250203031-2 | C186: F XI：C活性测定 | E186: 1 | F186: 109 | G186: 109 | I186: 平台到位后收回由检验科自主开展
A187: 151 | B187: 250203031-2 | C187: F XII：C活性测定 | E187: 1 | F187: 109 | G187: 109 | I187: 平台到位后收回由检验科自主开展
A188: 152 | B188: 250103008S | C188: 钙卫蛋白定量检测 | E188: 1 | F188: 130 | G188: 130 | I188: 试剂采购到位后收回由检验科自主开展
A189: 153 | B189: 250402068S 250402068S-1*4次 | C189: 肌炎抗体谱26项 | E189: 1 | F189: 510 | G189: 510 | I189: 试剂采购到位后收回由检验科自主开展
A190: 154 | B190: 270700003 (2次) | C190: 脊髓小脑共济失调DRPLA型基因片段分析 | E190: 2 | F190: 223.7 | G190: 447.4
A191: 155 | B191: 270700003 (2次) | C191: 脊髓小脑共济失调SCA12型基因片段分析 | E191: 2 | F191: 223.7 | G191: 447.4
A192: 156 | B192: 270700003 (2次) | C192: 脊髓小脑共济失调SCA1型基因片段分析 | E192: 2 | F192: 223.7 | G192: 447.4
A193: 157 | B193: 270700003 (2次) | C193: 脊髓小脑共济失调SCA2型基因片段分析 | E193: 2 | F193: 223.7 | G193: 447.4
A194: 158 | B194: 270700003 (2次) | C194: 脊髓小脑共济失调SCA3型基因片段分析 | E194: 2 | F194: 223.7 | G194: 447.4
A195: 159 | B195: 270700003 (9次) | C195: 共济失调 SCA1/2/3/6/7/8/10/ 12/17/36/DRPLA 型 /FRDA 型基因检测 | E195: 9 | F195: 223.7 | G195: 2013.3
A196: 160 | B196: 270700003 (2次) | C196: 脊髓小脑共济失调SCA6型基因片段分析 | E196: 2 | F196: 223.7 | G196: 447.4
A197: 161 | B197: 270700003 (2次) | C197: 脊髓小脑共济失调SCA7型基因片段分析 | E197: 2 | F197: 223.7 | G197: 447.4
A198: 162 | B198: 250203031-2（4次） | C198: 维生素K依赖因子 | E198: 4 | F198: 109 | G198: 436 | H198: FII,FVII,FIX,FX | I198: 平台到位后收回由检验科自主开展
A199: 163 | B199: 250203031-2（4次） | C199: 内源性凝血因子 | E199: 4 | F199: 109 | G199: 436 | H199: FVIII,FIX,FXI,FXII | I199: 平台到位后收回由检验科自主开展
A200: 164 | B200: 270700003 (2次) | C200: 人肠道疾病基因测序分型 | E200: 2 | F200: 223.7 | G200: 447.4
A201: 165 | B201: 250203031-2（4次） | C201: 外源性，共同途径凝血因子 | E201: 4 | F201: 109 | G201: 436 | H201: FII,FV,FVII,FX | I201: 平台到位后收回由检验科自主开展
... 54 more rows
